bitfinex-derivatives/quotes_BTCF0:USTF0_20220103
["timestamp","ask_amount","ask_price","bid_price","bid_amount"]
[1641217744590,0.13621166,47244.0,47238.0,0.12012181]
[1641217744789,0.13621166,47244.0,47237.0,3.05648994]
[1641217745191,0.13621166,47244.0,47239.0,0.12011819]
[1641217745390,0.13621166,47244.0,47238.0,0.12011819]
[1641217746094,0.13621166,47244.0,47240.0,0.12011819]
[1641217746391,0.13621166,47244.0,47238.0,0.12011819]
[1641217746793,0.13621166,47244.0,47237.0,3.05648994]
[1641217747391,0.13621166,47244.0,47238.0,0.12011645]
[1641217748392,1.19893847,47239.0,47238.0,0.12011645]
[1641217748593,1.19893847,47239.0,47238.0,0.12111645]
[1641217748796,0.13621166,47244.0,47238.0,0.12111645]
[1641217748994,1.42025045,47242.0,47238.0,0.30811645]
[1641217749194,1.42025045,47242.0,47239.0,0.12011645]
[1641217750794,1.42025045,47242.0,47238.0,0.12011645]
[1641217751094,1.42025045,47242.0,47240.0,0.12011645]
[1641217751293,1.42025045,47242.0,47239.0,0.26811645]
[1641217751494,1.42025045,47242.0,47241.0,0.12011645]
[1641217751694,1.42025045,47242.0,47240.0,0.12011645]
[1641217752899,1.42025045,47242.0,47240.0,0.29811645]
[1641217753096,1.42025045,47242.0,47240.0,0.178]
[1641217753298,1.55646211,47242.0,47240.0,0.178]
[1641217753698,0.13621166,47242.0,47240.0,0.178]
[1641217753897,0.18,47241.0,47240.0,0.178]
[1641217754397,0.18,47241.0,47233.0,0.14033567]
[1641217754598,0.31621166,47241.0,47233.0,0.14033567]
[1641217754798,0.31621166,47241.0,47234.0,0.12012123]
[1641217754998,0.18,47240.0,47234.0,0.12012123]
[1641217755400,1.43862541,47238.0,47234.0,0.12012123]
[1641217757300,1.57483707,47238.0,47234.0,0.12012123]
[1641217758301,1.43862541,47236.0,47234.0,0.12012123]
[1641217758901,1.43862541,47236.0,47234.0,0.25612123]
[1641217759201,0.13621166,47235.0,47234.0,0.136]
[1641217760003,0.13621166,47235.0,47234.0,0.55942141]
[1641217760212,0.13621166,47235.0,47234.0,0.43321541]
[1641217760606,0.13621166,47235.0,47234.0,0.45438423]
[1641217760906,0.13621166,47235.0,47234.0,0.64238423]
[1641217762404,0.13621166,47235.0,47234.0,0.45438423]
[1641217763008,0.13621166,47235.0,47234.0,0.63938423]
[1641217763205,0.13621166,47235.0,47234.0,0.21596282]
[1641217764404,0.13621166,47235.0,47234.0,0.03096282]
[1641217765006,1.33507815,47235.0,47234.0,0.21996282]
[1641217765706,0.13621166,47235.0,47234.0,0.21996282]
[1641217766606,1.33540018,47235.0,47234.0,0.21996282]
[1641217766906,1.33540018,47235.0,47234.0,0.22096282]
[1641217767206,0.13621166,47235.0,47234.0,0.22096282]
[1641217768808,0.13621166,47235.0,47234.0,0.03096282]
[1641217769007,0.13621166,47235.0,47234.0,0.21896282]
[1641217770408,0.13621166,47235.0,47234.0,0.03096282]
[1641217771108,0.13621166,47235.0,47234.0,0.22096282]
[1641217772311,0.13621166,47235.0,47234.0,0.03096282]
[1641217773009,0.13621166,47235.0,47234.0,0.22196282]
[1641217774213,0.13621166,47235.0,47234.0,0.34209247]
[1641217774414,0.13621166,47235.0,47234.0,0.15109247]
[1641217775115,0.13621166,47235.0,47234.0,0.34209247]
[1641217775613,0.13621166,47235.0,47234.0,0.41934678]
[1641217775814,0.13621166,47235.0,47234.0,0.59934678]
[1641217776018,0.13621166,47235.0,47234.0,0.41934678]
[1641217776215,0.13621166,47235.0,47234.0,0.73636978]
[1641217776417,0.13621166,47235.0,47234.0,0.55738224]
[1641217777017,0.13621166,47235.0,47234.0,0.74638224]
[1641217778420,0.13621166,47235.0,47234.0,0.55738224]
[1641217779020,0.13621166,47235.0,47234.0,0.74438224]
[1641217779221,1.33716232,47235.0,47234.0,0.42735924]
[1641217779421,1.43136232,47235.0,47234.0,0.41756524]
[1641217779621,0.23041166,47235.0,47234.0,0.40555278]
[1641217779822,0.23041166,47235.0,47234.0,1.60687126]
[1641217780023,0.23041166,47235.0,47234.0,1.52961695]
[1641217780422,0.23041166,47235.0,47234.0,0.14129847]
[1641217781034,0.23041166,47235.0,47234.0,0.30429847]
[1641217782536,0.23041166,47235.0,47234.0,0.14129847]
[1641217783137,0.23041166,47235.0,47234.0,0.30529847]
[1641217784439,0.23041166,47235.0,47234.0,0.14129847]
[1641217785040,0.23041166,47235.0,47234.0,0.30429847]
[1641217786339,0.23041166,47235.0,47234.0,0.14129847]
[1641217787039,0.13621166,47235.0,47234.0,0.30429847]
[1641217788140,0.22947166,47235.0,47234.0,0.30429847]
[1641217788539,0.22947166,47235.0,47234.0,0.14129847]
[1641217789145,0.22947166,47235.0,47234.0,0.30429847]
[1641217789744,0.22947166,47235.0,47234.0,0.28312965]
[1641217790342,0.22947166,47235.0,47234.0,0.12012965]
[1641217791144,0.22947166,47235.0,47234.0,0.28412965]
[1641217792348,0.22947166,47235.0,47234.0,0.12012965]
[1641217793049,0.22947166,47235.0,47234.0,0.30430027]
[1641217794453,0.22947166,47235.0,47234.0,0.12012965]
[1641217795151,0.22947166,47235.0,47234.0,0.27912965]
[1641217796156,0.40947166,47235.0,47234.0,0.27912965]
[1641217796357,0.40947166,47235.0,47230.0,1.19982873]
[1641217796556,0.18,47231.0,47230.0,0.9151321]
[1641217797157,0.361,47231.0,47230.0,0.153]
[1641217797356,0.50133567,47231.0,47224.0,0.9151321]
[1641217797557,0.18,47228.0,47224.0,0.9151321]
[1641217798057,0.18,47228.0,47222.0,0.02]
[1641217799159,0.362,47228.0,47222.0,0.02]
[1641217799358,0.182,47228.0,47222.0,0.02]
[1641217799562,0.13621166,47227.0,47222.0,0.02]
[1641217799760,0.13621166,47227.0,47223.0,0.01201523]
[1641217801059,0.32121166,47227.0,47223.0,0.01201523]
[1641217801460,0.13621166,47226.0,47223.0,0.01201523]
[1641217802459,0.13621166,47225.0,47223.0,0.01201523]
[1641217802659,0.21333166,47225.0,47223.0,0.01201523]
[1641217803061,0.13621166,47224.0,47223.0,0.01201523]
[1641217804665,0.13621166,47224.0,47223.0,0.12015742]
[1641217805263,0.31821166,47224.0,47223.0,0.12015742]
[1641217805664,0.182,47224.0,47223.0,0.12015742]
[1641217805865,0.54139615,47224.0,47223.0,0.12015742]
[1641217806565,0.35939615,47224.0,47223.0,0.12015742]
[1641217807166,0.54339615,47224.0,47223.0,0.12015742]
[1641217808469,0.67611359,47225.0,47223.0,0.12015742]
[1641217809068,0.86011359,47225.0,47223.0,0.12015742]
[1641217810269,0.18,47224.0,47223.0,0.12015742]
[1641217810869,0.67611359,47225.0,47223.0,0.12015742]
[1641217811170,0.184,47224.0,47223.0,0.12015742]
[1641217811975,0.364,47224.0,47215.0,1.20028777]
[1641217812172,0.18,47216.0,47215.0,1.20028777]
[1641217812374,0.18,47220.0,47215.0,1.20028777]
[1641217812973,0.18,47220.0,47212.0,1.3372793]
[1641217812974,0.18,47220.0,47212.0,0.02118043]
[1641217813173,0.363,47220.0,47212.0,0.02118043]
[1641217813374,0.14033567,47219.0,47213.0,0.0120171]
[1641217814177,0.35870978,47215.0,47213.0,0.0120171]
[1641217814374,0.43551978,47215.0,47213.0,0.0120171]
[1641217815189,0.61951978,47215.0,47213.0,0.0120171]
[1641217816188,0.61951978,47215.0,47212.0,0.02118043]
[1641217816489,0.07681,47215.0,47212.0,0.02118043]
[1641217816889,0.67465963,47215.0,47212.0,0.02118043]
[1641217817089,0.85865963,47215.0,47212.0,0.02118043]
[1641217817589,0.35849987,47213.0,47212.0,0.02118043]
[1641217818490,0.35849987,47213.0,47212.0,0.03319759]
[1641217818689,0.35849987,47213.0,47212.0,0.02118043]
[1641217819090,0.54349987,47213.0,47212.0,0.02118043]
[1641217819894,0.54349987,47213.0,47209.0,0.14033567]
[1641217820305,0.18,47210.0,47209.0,0.14033567]
[1641217820495,2.76315078,47212.0,47209.0,0.14033567]
[1641217820899,2.76315078,47212.0,47204.0,0.14033567]
[1641217820900,0.18,47210.0,47204.0,0.14033567]
[1641217822002,0.68283554,47212.0,47207.0,0.20118258]
[1641217822203,0.35849987,47211.0,47207.0,0.20118258]
[1641217822700,0.35849987,47211.0,47207.0,0.02118258]
[1641217822902,0.35849987,47211.0,47207.0,0.20118258]
[1641217823105,0.54449987,47211.0,47207.0,0.20118258]
[1641217823601,0.186,47211.0,47210.0,0.14033567]
[1641217824401,0.49883554,47219.0,47210.0,0.14033567]
[1641217824603,0.14033567,47219.0,47211.0,0.009794]
[1641217824802,0.14033567,47219.0,47211.0,0.29502702]
[1641217825002,0.35849987,47220.0,47216.0,0.001]
[1641217825202,0.184,47219.0,47217.0,0.18]
[1641217825404,0.184,47219.0,47218.0,0.14033567]
[1641217825600,0.184,47219.0,47218.0,0.16151314]
[1641217826302,0.184,47219.0,47218.0,0.16251314]
[1641217826501,0.35849987,47221.0,47218.0,0.16251314]
[1641217826703,0.35849987,47221.0,47218.0,0.16151314]
[1641217827002,0.59784963,47222.0,47218.0,0.16151314]
[1641217827203,0.185,47221.0,47218.0,0.16151314]
[1641217828105,0.185,47221.0,47220.0,0.001]
[1641217828303,0.185,47221.0,47218.0,0.16151314]
[1641217828803,0.185,47221.0,47220.0,0.001]
[1641217829006,0.185,47221.0,47218.0,0.16151314]
[1641217829303,0.185,47221.0,47220.0,0.001]
[1641217829503,0.185,47221.0,47220.0,0.18]
[1641217829808,0.35849987,47226.0,47220.0,0.21197003]
[1641217830004,0.35849987,47226.0,47224.0,0.60350944]
[1641217830606,0.53287325,47227.0,47225.0,0.03196758]
[1641217830905,0.53287325,47227.0,47226.0,0.001]
[1641217831105,0.3589658,47231.0,47226.0,0.08489]
[1641217831305,0.3589658,47231.0,47229.0,0.18]
[1641217831505,0.3589658,47231.0,47230.0,0.14033567]
[1641217831905,0.83647016,47234.0,47230.0,0.14133567]
[1641217832106,0.83647016,47237.0,47233.0,0.001]
[1641217832308,0.83647016,47237.0,47230.0,0.14033567]
[1641217832705,0.83647016,47237.0,47233.0,0.021171]
[1641217832906,0.83647016,47237.0,47230.0,0.14033567]
[1641217833108,0.83647016,47237.0,47233.0,0.193]
[1641217833907,0.83647016,47238.0,47233.0,0.193]
[1641217835209,0.83647016,47237.0,47233.0,0.192]
[1641217836513,0.83647016,47237.0,47232.0,0.02117136]
[1641217836813,0.83647016,47236.0,47232.0,0.02117136]
[1641217837215,0.83647016,47236.0,47232.0,0.21417136]
[1641217838515,0.83647016,47236.0,47232.0,0.02117136]
[1641217839317,0.83647016,47236.0,47232.0,0.21217136]
[1641217839719,0.83647016,47237.0,47232.0,0.21217136]
[1641217840622,0.83647016,47237.0,47232.0,0.02117136]
[1641217840819,0.59871654,47235.0,47232.0,0.02117136]
[1641217841120,0.59871654,47235.0,47232.0,0.21317136]
[1641217841821,0.35923484,47234.0,47232.0,0.21317136]
[1641217842722,0.35923484,47234.0,47232.0,0.02117136]
[1641217843322,0.35923484,47234.0,47232.0,0.20817136]
[1641217844624,0.35923484,47234.0,47232.0,0.02117136]
[1641217845222,0.35923484,47234.0,47232.0,0.20917136]
[1641217846623,0.35923484,47234.0,47232.0,0.02117136]
[1641217847225,0.35923484,47234.0,47232.0,0.21117136]
[1641217848439,0.35923484,47234.0,47232.0,0.28321136]
[1641217848639,0.35923484,47234.0,47232.0,0.09321136]
[1641217849039,0.35923484,47234.0,47233.0,0.20117011]
[1641217849541,0.35923484,47234.0,47233.0,0.15329545]
[1641217849740,0.35923484,47240.0,47233.0,0.33329545]
[1641217849939,0.35923484,47240.0,47233.0,0.15329545]
[1641217850543,0.59871654,47241.0,47233.0,0.02116861]
[1641217850746,0.35923484,47243.0,47233.0,0.02116861]
[1641217851242,0.35923484,47243.0,47233.0,0.20916861]
[1641217852243,0.35923484,47241.0,47233.0,0.20916861]
[1641217852644,0.35923484,47241.0,47233.0,0.02116861]
[1641217852842,0.35923484,47242.0,47233.0,0.02116861]
[1641217853348,0.35923484,47242.0,47233.0,0.21116861]
[1641217854643,0.35923484,47242.0,47233.0,0.02116861]
[1641217855243,0.35923484,47242.0,47233.0,0.21116861]
[1641217856545,0.35923484,47242.0,47236.0,0.14033567]
[1641217856747,0.35923484,47242.0,47241.0,0.001]
[1641217857246,0.35923484,47242.0,47241.0,0.191]
[1641217858552,0.35923484,47242.0,47241.0,0.001]
[1641217858949,0.35923484,47243.0,47241.0,0.001]
[1641217859148,0.35923484,47243.0,47242.0,0.001]
[1641217861352,0.54523484,47243.0,47242.0,0.001]
[1641217862352,0.54523484,47243.0,47242.0,0.05969]
[1641217863252,0.73123484,47243.0,47242.0,0.05969]
[1641217864554,0.54523484,47243.0,47242.0,0.05969]
[1641217864754,0.35923484,47243.0,47242.0,0.05969]
[1641217865355,0.54523484,47243.0,47242.0,0.05969]
[1641217866258,0.54523484,47243.0,47242.0,0.05869]
[1641217866457,0.54523484,47243.0,47236.0,0.14033567]
[1641217866656,0.35923484,47243.0,47236.0,0.14033567]
[1641217866858,0.35923484,47243.0,47238.0,0.30724964]
[1641217867359,0.54623484,47243.0,47238.0,0.30724964]
[1641217867561,1.43862541,47241.0,47238.0,0.30724964]
[1641217867960,1.43862541,47241.0,47240.0,0.001]
[1641217869361,1.62762541,47241.0,47240.0,0.001]
[1641217870161,1.75166008,47241.0,47240.0,0.001]
[1641217870761,1.56266008,47241.0,47240.0,0.001]
[1641217871367,1.75266008,47241.0,47238.0,0.30724964]
[1641217871967,0.31403467,47241.0,47238.0,0.30724964]
[1641217872564,0.12403467,47240.0,47238.0,0.30724964]
[1641217872768,0.12403467,47240.0,47239.0,0.001]
[1641217873264,0.31103467,47240.0,47239.0,0.001]
[1641217874668,0.12403467,47240.0,47239.0,0.001]
[1641217875267,0.31103467,47240.0,47239.0,0.001]
[1641217875670,0.31103467,47240.0,47238.0,0.30724964]
[1641217876468,0.12403467,47239.0,47238.0,0.30724964]
[1641217876869,0.12403467,47239.0,47238.0,0.30824964]
[1641217877269,0.31203467,47239.0,47238.0,0.35724964]
[1641217877872,0.188,47239.0,47238.0,0.35724964]
[1641217878770,1.43862541,47245.0,47238.0,0.30824964]
[1641217878969,0.08014,47241.0,47238.0,0.30724964]
[1641217879370,0.12403467,47239.0,47238.0,0.30724964]
[1641217879571,0.12403467,47240.0,47238.0,0.30824964]
[1641217879770,0.12403467,47240.0,47238.0,0.30724964]
[1641217881271,0.31203467,47240.0,47238.0,0.30724964]
[1641217882371,0.12403467,47239.0,47238.0,0.30724964]
[1641217882670,0.12403467,47239.0,47238.0,0.30824964]
[1641217883270,0.12403467,47239.0,47238.0,0.30724964]
[1641217883470,0.31403467,47239.0,47238.0,0.30724964]
[1641217884772,0.12403467,47239.0,47238.0,0.30724964]
[1641217885473,0.31403467,47239.0,47238.0,0.30724964]
[1641217886074,0.19,47239.0,47238.0,0.30724964]
[1641217886676,0.12403467,47239.0,47238.0,0.30724964]
[1641217887275,0.12403467,47239.0,47236.0,0.14033567]
[1641217887575,0.31403467,47239.0,47236.0,0.14033567]
[1641217887876,0.19,47239.0,47236.0,0.14033567]
[1641217888678,0.18,47242.0,47236.0,0.14033567]
[1641217888877,0.12403467,47238.0,47236.0,0.14033567]
[1641217889177,1.19982524,47237.0,47236.0,0.14033567]
[1641217889692,0.187,47238.0,47236.0,0.14033567]
[1641217890294,0.18,47237.0,47230.0,0.36087257]
[1641217890493,0.18,47233.0,47230.0,0.36087257]
[1641217890693,0.27557,47233.0,47230.0,0.3397]
[1641217890893,0.27557,47233.0,47226.0,1.20028777]
[1641217891396,0.28357,47233.0,47226.0,1.20028777]
[1641217891596,1.19877733,47232.0,47222.0,2.82276372]
[1641217891796,0.14033567,47231.0,47222.0,1.22146372]
[1641217891997,0.14033567,47231.0,47227.0,0.12011709]
[1641217892599,1.19877733,47229.0,47227.0,0.02117391]
[1641217892798,1.19877733,47229.0,47228.0,0.12011709]
[1641217893599,0.79574602,47229.0,47228.0,0.12111709]
[1641217893801,0.12403467,47230.0,47228.0,0.4618404]
[1641217894000,0.12403467,47230.0,47228.0,0.4608404]
[1641217894401,0.12403467,47230.0,47229.0,0.12011709]
[1641217894602,1.43862541,47235.0,47229.0,0.12011709]
[1641217895400,1.61962541,47235.0,47229.0,0.12011709]
[1641217896001,1.74366008,47235.0,47229.0,0.12011709]
[1641217896703,1.56266008,47235.0,47230.0,0.31657]
[1641217897106,1.56266008,47235.0,47231.0,0.12011709]
[1641217897305,0.12403467,47234.0,47231.0,0.12011709]
[1641217897703,1.62262541,47235.0,47231.0,0.12011709]
[1641217897903,1.62262541,47235.0,47230.0,0.12011709]
[1641217898303,1.62262541,47235.0,47229.0,0.12011709]
[1641217898804,1.43862541,47235.0,47229.0,0.43658409]
[1641217899105,1.43862541,47235.0,47232.0,0.40101992]
[1641217899404,0.12403467,47233.0,47232.0,0.40101992]
[1641217899806,0.184,47235.0,47229.0,1.20028777]
[1641217900807,0.12403467,47233.0,47230.0,0.12011334]
[1641217901406,0.29403467,47233.0,47230.0,0.12011334]
[1641217901604,0.29403467,47233.0,47229.0,0.12011334]
[1641217901806,0.29403467,47233.0,47228.0,0.02117231]
[1641217902006,0.17,47233.0,47231.0,0.14033567]
[1641217902809,1.43862541,47234.0,47231.0,0.14033567]
[1641217903007,0.12403467,47232.0,47231.0,0.14033567]
[1641217903707,1.61362541,47234.0,47231.0,0.14033567]
[1641217904615,1.43862541,47234.0,47231.0,0.14033567]
[1641217904813,0.12403467,47233.0,47231.0,0.14033567]
[1641217905510,0.177,47233.0,47231.0,0.14033567]
[1641217906212,0.12403467,47232.0,47231.0,0.14033567]
[1641217906612,0.12403467,47232.0,47231.0,0.26044209]
[1641217907415,0.30503467,47232.0,47231.0,0.26044209]
[1641217907613,0.24152034,47232.0,47231.0,0.26044209]
[1641217908113,1.08061224,47232.0,47231.0,0.26044209]
[1641217908813,0.89961224,47232.0,47231.0,0.26044209]
[1641217909514,1.08061224,47232.0,47231.0,0.26044209]
[1641217909716,1.0200919,47232.0,47231.0,0.26044209]
[1641217910818,0.8390919,47232.0,47231.0,0.26044209]
[1641217911518,1.0200919,47232.0,47231.0,0.26044209]
[1641217912721,0.8390919,47232.0,47231.0,0.26044209]
[1641217913521,1.0200919,47232.0,47231.0,0.26044209]
[1641217914721,0.8390919,47232.0,47231.0,0.26044209]
[1641217915521,1.0200919,47232.0,47231.0,0.26044209]
[1641217916123,0.181,47232.0,47231.0,0.26044209]
[1641217916622,0.181,47232.0,47231.0,0.26144209]
[1641217916824,1.43862541,47235.0,47231.0,0.26044209]
[1641217917025,1.43862541,47236.0,47231.0,0.26044209]
[1641217917222,1.43862541,47236.0,47232.0,0.12010642]
[1641217917422,0.18,47235.0,47231.0,0.14033567]
[1641217917624,0.18,47235.0,47231.0,0.56378338]
[1641217918826,1.43862541,47236.0,47231.0,0.56378338]
[1641217919228,1.43862541,47236.0,47232.0,0.1147673]
[1641217919427,1.61662541,47236.0,47232.0,0.1147673]
[1641217919627,1.61662541,47236.0,47231.0,0.56378338]
[1641217920334,1.61662541,47236.0,47232.0,0.12010346]
[1641217920631,1.61662541,47236.0,47234.0,0.02117086]
[1641217921230,0.178,47236.0,47234.0,0.02117086]
[1641217921432,0.36,47236.0,47234.0,0.02117086]
[1641217922834,1.43862541,47237.0,47234.0,0.02117086]
[1641217923032,0.12766879,47235.0,47234.0,0.02117086]
[1641217923531,0.12766879,47235.0,47234.0,0.14126948]
[1641217923731,0.119,47236.0,47234.0,0.02117086]
[1641217924130,0.119,47236.0,47235.0,0.12009862]
[1641217924831,1.43862541,47239.0,47235.0,0.12009862]
[1641217925334,1.43862541,47239.0,47234.0,0.02117086]
[1641217925534,1.63262541,47239.0,47234.0,0.02117086]
[1641217926733,1.43862541,47239.0,47234.0,0.02117086]
[1641217927333,1.43862541,47239.0,47235.0,0.11244797]
[1641217927533,1.63162541,47239.0,47235.0,0.11244797]
[1641217928735,1.63162541,47239.0,47234.0,0.02117086]
[1641217928935,1.43862541,47239.0,47234.0,0.02117086]
[1641217929135,1.43862541,47238.0,47234.0,0.02117086]
[1641217930634,0.193,47239.0,47234.0,0.02117086]
[1641217930839,1.43862541,47241.0,47234.0,0.02117086]
[1641217931539,1.63062541,47241.0,47234.0,0.02117086]
[1641217931739,1.81062541,47241.0,47234.0,0.02117086]
[1641217932440,1.43862541,47240.0,47234.0,0.02117086]
[1641217933445,1.63062541,47240.0,47234.0,0.02117086]
[1641217934843,1.43862541,47240.0,47234.0,0.02117086]
[1641217935543,1.63062541,47240.0,47234.0,0.02117086]
[1641217935946,0.18,47239.0,47234.0,0.02117086]
[1641217937444,0.373,47239.0,47234.0,0.02117086]
[1641217938856,0.18,47239.0,47234.0,0.02117086]
[1641217939454,0.372,47239.0,47234.0,0.02117086]
[1641217939856,0.12761703,47238.0,47234.0,0.02117086]
[1641217941457,0.32061703,47238.0,47234.0,0.02117086]
[1641217942358,0.12761703,47237.0,47234.0,0.02117086]
[1641217943660,0.32261703,47237.0,47234.0,0.02117086]
[1641217943861,0.195,47237.0,47234.0,0.02117086]
[1641217944759,0.12761703,47236.0,47234.0,0.02117086]
[1641217945360,0.12761703,47238.0,47234.0,0.02117086]
[1641217945660,0.193,47237.0,47234.0,0.02117086]
[1641217946860,0.12761703,47236.0,47234.0,0.02117086]
[1641217947461,0.186,47236.0,47234.0,0.02117086]
[1641217948263,0.12761703,47235.0,47234.0,0.02117086]
[1641217949563,0.31261703,47235.0,47234.0,0.02117086]
[1641217949769,0.185,47235.0,47234.0,0.02117086]
[1641217950363,0.31261703,47235.0,47234.0,0.02117086]
[1641217950763,0.12761703,47235.0,47234.0,0.02117086]
[1641217951565,0.31461703,47235.0,47234.0,0.02117086]
[1641217951765,0.187,47235.0,47234.0,0.02117086]
[1641217952666,0.31461703,47235.0,47234.0,0.02117086]
[1641217952866,0.12761703,47235.0,47234.0,0.02117086]
[1641217953468,0.30561703,47235.0,47234.0,0.02117086]
[1641217953870,0.178,47235.0,47234.0,0.44216891]
[1641217954568,0.30561703,47235.0,47234.0,0.44216891]
[1641217954870,0.12761703,47235.0,47234.0,0.44216891]
[1641217955467,0.15661703,47235.0,47234.0,0.44216891]
[1641217956169,0.029,47235.0,47234.0,0.02117086]
[1641217956868,1.61862541,47239.0,47234.0,0.02117086]
[1641217957069,0.12761703,47235.0,47234.0,0.02117086]
[1641217957770,1.56624244,47238.0,47234.0,0.02117086]
[1641217959572,0.191,47238.0,47234.0,0.02117086]
[1641217960773,1.43862541,47239.0,47234.0,0.02117086]
[1641217961173,0.12761703,47237.0,47234.0,0.02117086]
[1641217961675,1.63062541,47239.0,47234.0,0.02117086]
[1641217962173,0.12761703,47238.0,47234.0,0.02117086]
[1641217962374,0.19022703,47238.0,47234.0,0.02117086]
[1641217963274,0.12761703,47237.0,47234.0,0.02117086]
[1641217965475,0.31961703,47237.0,47234.0,0.02117086]
[1641217966880,0.12761703,47237.0,47234.0,0.02117086]
[1641217967184,0.12761703,47236.0,47234.0,0.02117086]
[1641217967981,0.187,47237.0,47234.0,0.02117086]
[1641217968783,1.43862541,47238.0,47234.0,0.02117086]
[1641217968983,0.12761703,47236.0,47234.0,0.02117086]
[1641217969485,0.31661703,47236.0,47234.0,0.02117086]
[1641217969786,0.189,47236.0,47234.0,0.02117086]
[1641217970185,0.12761703,47235.0,47234.0,0.02117086]
[1641217971484,0.19,47235.0,47234.0,0.02117086]
[1641217972388,0.31761703,47235.0,47234.0,0.02117086]
[1641217972789,0.12761703,47235.0,47234.0,0.02117086]
[1641217973489,0.30161703,47235.0,47234.0,0.02117086]
[1641217974689,0.12761703,47235.0,47234.0,0.02117086]
[1641217975490,0.29761703,47235.0,47234.0,0.13142774]
[1641217975693,0.17,47235.0,47234.0,0.13142774]
[1641217975891,0.17,47235.0,47234.0,0.02117086]
[1641217976391,0.29761703,47235.0,47234.0,0.02117086]
[1641217976791,0.12761703,47235.0,47234.0,0.02117086]
[1641217977494,0.173,47235.0,47234.0,0.02117086]
[1641217978092,0.30061703,47235.0,47234.0,0.02117086]
[1641217978992,0.12761703,47235.0,47233.0,0.14033567]
[1641217979193,0.20173703,47235.0,47233.0,0.14033567]
[1641217979594,0.37873703,47235.0,47233.0,0.14033567]
[1641217980694,0.20173703,47235.0,47233.0,0.14033567]
[1641217980898,0.12761703,47234.0,47233.0,0.14033567]
[1641217981594,0.30661703,47234.0,47233.0,0.14033567]
[1641217982798,0.12761703,47234.0,47233.0,0.14033567]
[1641217983499,0.30161703,47234.0,47233.0,0.14033567]
[1641217984099,0.30161703,47234.0,47231.0,0.44462233]
[1641217984300,0.30161703,47234.0,47229.0,0.14033567]
[1641217984702,0.30161703,47234.0,47229.0,1.34062344]
[1641217984900,0.12761703,47234.0,47229.0,1.34062344]
[1641217985103,0.18,47232.0,47229.0,1.34062344]
[1641217985299,0.12761703,47234.0,47229.0,1.34062344]
[1641217985500,0.18,47232.0,47229.0,1.34062344]
[1641217985701,0.31661703,47234.0,47229.0,1.34062344]
[1641217985902,0.18,47233.0,47229.0,1.34062344]
[1641217986101,1.61862541,47233.0,47229.0,1.34062344]
[1641217986303,1.56624244,47233.0,47229.0,0.14033567]
[1641217986501,1.74624244,47233.0,47229.0,0.14033567]
[1641217987511,1.93424244,47233.0,47229.0,0.14033567]
[1641217987711,1.75424244,47233.0,47229.0,0.14033567]
[1641217987911,0.12761703,47232.0,47229.0,0.14033567]
[1641217989516,0.31761703,47232.0,47229.0,0.14033567]
[1641217989716,1.75624244,47232.0,47229.0,0.14033567]
[1641217990719,0.12761703,47231.0,47229.0,0.14033567]
[1641217991420,0.31861703,47231.0,47229.0,0.14033567]
[1641217992226,0.12761703,47230.0,47229.0,0.14033567]
[1641217992427,0.30761703,47230.0,47229.0,0.14033567]
[1641217992823,0.12761703,47230.0,47229.0,0.14033567]
[1641217993128,1.56624244,47230.0,47229.0,0.14033567]
[1641217993521,1.75824244,47230.0,47229.0,0.14033567]
[1641217993721,0.31961703,47230.0,47229.0,0.14033567]
[1641217994422,0.31961703,47230.0,47224.0,0.16151101]
[1641217994622,0.18,47229.0,47224.0,0.14033567]
[1641217994822,0.31961703,47230.0,47222.0,1.20028777]
[1641217994823,0.18,47225.0,47222.0,1.20028777]
[1641217995023,0.08683,47225.0,47222.0,1.20028777]
[1641217995523,0.27683,47225.0,47222.0,1.20028777]
[1641217995824,0.45683,47225.0,47222.0,1.20028777]
[1641217996023,0.27683,47225.0,47222.0,1.20028777]
[1641217996228,0.12761703,47224.0,47218.0,1.34062344]
[1641217997325,0.12761703,47224.0,47218.0,0.14033567]
[1641217997525,0.31761703,47224.0,47218.0,0.14033567]
[1641217997726,0.31761703,47224.0,47219.0,0.01201501]
[1641217998726,0.12761703,47224.0,47219.0,0.01201501]
[1641217999127,0.12761703,47223.0,47219.0,1.21230278]
[1641217999628,0.12761703,47223.0,47219.0,1.20028777]
[1641217999928,0.31761703,47224.0,47220.0,0.01201485]
[1641218000631,0.12761703,47223.0,47220.0,0.01201485]
[1641218001430,0.31661703,47223.0,47220.0,0.01201485]
[1641218001829,0.31661703,47223.0,47219.0,1.20028777]
[1641218002231,0.189,47223.0,47219.0,1.20028777]
[1641218002830,1.51909174,47225.0,47218.0,0.14033567]
[1641218002831,0.12761703,47222.0,47218.0,0.14033567]
[1641218003430,0.31661703,47222.0,47218.0,0.14033567]
[1641218004832,0.12761703,47221.0,47218.0,0.14033567]
[1641218005434,0.31661703,47221.0,47218.0,0.14033567]
[1641218005738,0.189,47221.0,47218.0,0.14033567]
[1641218006634,0.12761703,47220.0,47218.0,0.14033567]
[1641218007433,0.31961703,47220.0,47218.0,0.14033567]
[1641218007835,0.192,47220.0,47218.0,0.14033567]
[1641218008538,0.12761703,47219.0,47218.0,1.34062344]
[1641218009537,0.31961703,47219.0,47218.0,0.14033567]
[1641218009738,0.31961703,47219.0,47218.0,0.32033567]
[1641218009940,0.31961703,47219.0,47218.0,0.43424653]
[1641218010139,0.31961703,47219.0,47218.0,0.23894773]
[1641218010340,0.192,47219.0,47218.0,0.23894773]
[1641218010941,1.43226174,47224.0,47218.0,0.23894773]
[1641218011141,1.43226174,47224.0,47218.0,0.64418538]
[1641218011345,1.43226174,47228.0,47219.0,0.01201498]
[1641218011543,0.183,47224.0,47223.0,0.18]
[1641218011742,1.43226174,47228.0,47224.0,0.0514879]
[1641218011943,1.43226174,47228.0,47224.0,0.1405479]
[1641218012142,1.43226174,47228.0,47225.0,0.09359469]
[1641218012742,1.43226174,47228.0,47227.0,0.16150944]
[1641218013347,0.83624333,47228.0,47227.0,0.16150944]
[1641218013544,0.83624333,47228.0,47227.0,0.35550944]
[1641218014347,0.83624333,47229.0,47227.0,0.35550944]
[1641218014947,0.83624333,47229.0,47227.0,0.16150944]
[1641218015549,0.83624333,47229.0,47227.0,0.35550944]
[1641218015850,0.83624333,47230.0,47227.0,0.35550944]
[1641218016248,0.12761703,47236.0,47227.0,0.35550944]
[1641218016451,1.43226174,47234.0,47227.0,0.35550944]
[1641218016851,1.43226174,47234.0,47227.0,0.16150944]
[1641218017552,1.43226174,47234.0,47227.0,0.35550944]
[1641218018754,1.43226174,47234.0,47227.0,0.16150944]
[1641218019555,1.43226174,47234.0,47227.0,0.35550944]
[1641218020258,0.18,47233.0,47227.0,0.35550944]
[1641218020456,0.18,47233.0,47227.0,0.33433567]
[1641218020658,1.50480174,47234.0,47227.0,0.33433567]